fUSD/lending_fUSD_20250606
["ID","MTS","AMOUNT","RATE_DAILY","PERIOD"]
[364723238,1749220246381,-480.0,0.00030164,7]
[364723240,1749220246390,-480.0,0.00030164,7]
[364723241,1749220246399,-1220.04,0.00030164,7]
[364723244,1749220246410,-480.0,0.00030164,7]
[364723246,1749220246421,-458.60142033,0.00030164,7]
[364723248,1749220246430,-600.0,0.00030164,2]
[364723250,1749220246440,-1362.42,0.00030164,7]
[364723251,1749220246450,-480.0,0.00030164,7]
[364723254,1749220246460,-165.885412,0.00030164,7]
[364723256,1749220246469,-165.885412,0.00030164,7]
[364723257,1749220246478,-480.0,0.00030164,7]
[364723259,1749220246488,-1000.0,0.00030164,7]
[364723261,1749220246497,-480.0,0.00030164,7]
[364723263,1749220246507,-1189.05,0.00030164,7]
[364723265,1749220246517,-582.39738465,0.00030164,7]
[364723267,1749220246527,-151.0,0.00030164,7]
[364723269,1749220246536,-151.0,0.00030164,7]
[364723272,1749220246546,-480.0,0.00030164,7]
[364723274,1749220246556,-296.887823,0.00030164,7]
[364723275,1749220246565,-296.887823,0.00030164,7]
[364723277,1749220246575,-985.5,0.00030164,7]
[364723279,1749220246585,-480.0,0.00030164,7]
[364723281,1749220246594,-820.31,0.00030164,7]
[364723283,1749220246604,-151.250867,0.00030164,7]
[364723285,1749220246613,-572.01,0.00030164,7]
[364723287,1749220246622,-381.543116,0.00030164,7]
[364723289,1749220246631,-480.0,0.00030164,7]
[364723291,1749220246640,-1807.04,0.00030164,7]
[364723293,1749220246649,-1262.79,0.00030164,7]
[364723295,1749220246660,-421.80531945,0.00030164,7]
[364723297,1749220246671,-381.543116,0.00030164,7]
[364723299,1749220246680,-480.0,0.00030164,7]
[364723301,1749220246690,-2516.73,0.00030164,7]
[364723303,1749220246699,-480.0,0.00030164,7]
[364723305,1749220246709,-778.34,0.00030164,7]
[364723307,1749220246718,-480.0,0.00030164,7]
[364723309,1749220246727,-839.08,0.00030164,7]
[364723311,1749220246737,-11285.31,0.00030164,7]
[364723313,1749220246746,-1101.15,0.00030164,7]
[364723315,1749220246755,-480.0,0.00030164,7]
[364723317,1749220246766,-3214.08,0.00030164,7]
[364723319,1749220246776,-480.0,0.00030164,7]
[364723321,1749220246785,-480.0,0.00030164,7]
[364723323,1749220246795,-2964.96,0.00030164,7]
[364723325,1749220246804,-873.96,0.00030164,7]
[364723327,1749220246814,-4607.18,0.00030164,7]
[364723329,1749220246823,-480.0,0.00030164,7]
[364723331,1749220246832,-20710.06,0.00030164,7]
[364723333,1749220246841,-480.0,0.00030164,7]
[364723335,1749220246850,-480.0,0.00030164,7]
[364723337,1749220246860,-1067.02,0.00030164,7]
[364723339,1749220246869,-480.0,0.00030164,7]
[364723341,1749220246879,-480.0,0.00030164,7]
[364723343,1749220246889,-480.0,0.00030164,7]
[364723345,1749220246898,-151.0,0.00030164,7]
[364723347,1749220246908,-151.0,0.00030164,7]
[364723349,1749220246918,-612.42,0.00030164,7]
[364723352,1749220246928,-3585.66,0.00030164,7]
[364723353,1749220246937,-480.0,0.00030164,7]
[364723356,1749220246947,-1186.93,0.00030164,7]
[364723357,1749220246956,-480.0,0.00030164,7]
[364723360,1749220246966,-480.0,0.00030164,2]
[364723362,1749220246976,-2364.45,0.00030164,7]
[364723363,1749220246985,-1255.39,0.00030164,7]
[364723365,1749220246994,-480.0,0.00030164,7]
[364723367,1749220247004,-1399.55,0.00030164,7]
[364723369,1749220247013,-491.87,0.00030164,7]
[364723372,1749220247023,-825.25,0.00030164,7]
[364723374,1749220247032,-1108.3,0.00030164,7]
[364723375,1749220247042,-726.54,0.00030164,7]
[364723377,1749220247052,-522.17166458,0.00030164,7]
[364723379,1749220247061,-1692.8,0.00030164,7]
[364723382,1749220247071,-480.0,0.00030164,7]
[364723383,1749220247080,-2028.66,0.00030164,7]
[364723385,1749220247090,-480.0,0.00030164,7]
[364723387,1749220247099,-781.47,0.00030164,7]
[364723390,1749220247109,-1466.18,0.00030164,7]
[364723392,1749220247118,-73191.22,0.00030164,7]
[364723394,1749220247128,-1031.1,0.00030164,7]
[364723396,1749220247137,-2308.95,0.00030164,7]
[364723397,1749220247146,-1187.36,0.00030164,7]
[364723400,1749220247157,-1402.86,0.00030164,7]
[364723402,1749220247166,-1807.35,0.00030164,7]
[364723404,1749220247176,-480.0,0.00030164,7]
[364723405,1749220247185,-1648.94,0.00030164,7]
[364723408,1749220247194,-1912.7,0.00030164,7]
[364723410,1749220247204,-4297.8,0.00030164,7]
[364723411,1749220247213,-480.0,0.00030164,7]
[364723414,1749220247223,-1127.05,0.00030164,7]
[364723416,1749220247232,-480.0,0.00030164,7]
[364723417,1749220247241,-1433.3,0.00030164,7]
[364723419,1749220247250,-793.28,0.00030164,7]
[364723421,1749220247259,-300.0,0.00030164,7]
[364723423,1749220247269,-480.0,0.00030164,7]
[364723425,1749220247278,-845.41,0.00030164,7]
[364723427,1749220247287,-1143.75,0.00030164,7]
[364723429,1749220247297,-480.0,0.00030164,7]
[364723431,1749220247306,-4339.46,0.00030164,7]
[364723433,1749220247315,-480.0,0.00030164,7]
[364723435,1749220247325,-550.99,0.00030164,7]
[364723438,1749220247335,-480.0,0.00030164,7]
[364723439,1749220247345,-480.0,0.00030164,7]
[364723442,1749220247354,-558.97,0.00030164,7]
[364723443,1749220247365,-171.240678,0.00030164,7]
[364723445,1749220247379,-480.0,0.00030164,7]
[364723448,1749220247389,-171.240678,0.00030164,7]
[364723449,1749220247399,-705.32,0.00030164,7]
[364723452,1749220247409,-638.49,0.00030164,7]
[364723454,1749220247419,-171.240678,0.00030164,7]
[364723455,1749220247428,-151.0,0.00030164,7]
[364723457,1749220247437,-480.0,0.00030164,7]
[364723459,1749220247447,-646.01,0.00030164,7]
[364723461,1749220247457,-171.240678,0.00030164,7]
[364723463,1749220247467,-151.0,0.00030164,7]
[364723466,1749220247479,-480.0,0.00030164,7]
[364723468,1749220247488,-5821.7,0.00030164,7]
[364723470,1749220247497,-480.0,0.00030164,7]
[364723472,1749220247506,-1415.28,0.00030164,7]
[364723474,1749220247516,-480.0,0.00030164,7]
[364723476,1749220247525,-2997.28,0.00030164,7]
[364723478,1749220247534,-151.0,0.00030164,7]
[364723479,1749220247544,-480.0,0.00030164,7]
[364723481,1749220247553,-2219.2,0.00030164,7]
[364723484,1749220247562,-151.0,0.00030164,7]
[364723485,1749220247571,-253.847817,0.00030164,7]
[364723488,1749220247581,-253.847817,0.00030164,7]
[364723489,1749220247590,-367.53371214,0.00030164,7]
[364723491,1749220247600,-480.0,0.00030164,7]
[364723493,1749220247609,-4881.17,0.00030164,7]
[364723495,1749220247618,-1494.8,0.00030164,7]
[364723497,1749220247627,-480.0,0.00030164,7]
[364723499,1749220247637,-480.0,0.00030164,7]
[364723501,1749220247646,-761.61,0.00030164,7]
[364723503,1749220247655,-253.847817,0.00030164,7]
[364723505,1749220247665,-253.847817,0.00030164,7]
[364723507,1749220247676,-2109.18,0.00030164,7]
[364723509,1749220247685,-1044.45,0.00030164,7]
[364723511,1749220247694,-152.113808,0.00030164,7]
[364723513,1749220247703,-480.0,0.00030164,7]
[364723515,1749220247712,-617.24,0.00030164,7]
[364723517,1749220247721,-6318.65,0.00030164,7]
[364723519,1749220247731,-1804.22,0.00030164,7]
[364723521,1749220247740,-776.29,0.00030164,7]
[364723523,1749220247749,-5806.79,0.00030164,7]
[364723525,1749220247759,-480.0,0.00030164,7]
[364723527,1749220247768,-902.05,0.00030164,7]
[364723529,1749220247777,-480.0,0.00030164,7]
[364723531,1749220247787,-677.86,0.00030164,7]
[364723533,1749220247796,-480.0,0.00030164,7]
[364723535,1749220247805,-17052.87,0.00030164,7]
[364723537,1749220247815,-1448.58,0.00030164,7]
[364723539,1749220247824,-480.0,0.00030164,7]
[364723541,1749220247833,-161.264243,0.00030164,7]
[364723543,1749220247842,-161.264243,0.00030164,7]
[364723545,1749220247852,-480.0,0.00030164,7]
[364723547,1749220247861,-500.31167585,0.00030164,7]
[364723549,1749220247871,-480.0,0.00030164,7]
[364723551,1749220247880,-1087.78,0.00030164,7]
[364723553,1749220247889,-596.02,0.00030164,7]
[364723555,1749220247898,-161.264243,0.00030164,7]
[364723557,1749220247908,-1086.7,0.00030164,7]
[364723559,1749220247917,-161.264243,0.00030164,7]
[364723561,1749220247926,-480.0,0.00030164,7]
[364723563,1749220247936,-480.0,0.00030164,7]
[364723565,1749220247945,-1926.02,0.00030164,7]
[364723567,1749220247954,-480.0,0.00030164,7]
[364723569,1749220247963,-1310.18,0.00030164,7]
[364723571,1749220247972,-480.01,0.00030164,7]
[364723573,1749220247981,-519.44426362,0.00030164,7]
[364723575,1749220247991,-971.77,0.00030164,7]
[364723577,1749220248000,-2065.59,0.00030164,7]
[364723579,1749220248009,-454.9459083,0.00030164,7]
[364723581,1749220248019,-480.0,0.00030164,7]
[364723583,1749220248028,-2324.9,0.00030164,7]
[364723585,1749220248037,-13307.39,0.00030164,7]
[364723587,1749220248046,-480.0,0.00030164,7]
[364723589,1749220248055,-824.21,0.00030164,7]
[364723591,1749220248064,-480.0,0.00030164,7]
[364723593,1749220248073,-482.3023626,0.00030164,7]
[364723595,1749220248082,-493.44260344,0.00030164,7]
[364723597,1749220248092,-2178.92,0.00030164,7]
[364723599,1749220248101,-3945.0,0.00030164,7]
[364723601,1749220248110,-480.0,0.00030164,7]
[364723603,1749220248119,-480.0,0.00030164,7]
[364723605,1749220248128,-4149.78,0.00030164,7]
[364723607,1749220248137,-3813.84,0.00030164,7]
[364723609,1749220248146,-347.06531874,0.00030164,7]
[364723611,1749220248156,-1365.76,0.00030164,7]
[364723613,1749220248166,-480.0,0.00030164,7]
[364723615,1749220248175,-984.68,0.00030164,7]
[364723617,1749220248184,-480.0,0.00030164,7]
[364723619,1749220248194,-151.0,0.00030164,7]
[364723621,1749220248203,-904.26,0.00030164,7]
[364723623,1749220248212,-151.0,0.00030164,7]
[364723625,1749220248221,-151.0,0.00030164,7]
[364723627,1749220248230,-151.0,0.00030164,7]
[364723629,1749220248240,-480.0,0.00030164,7]
[364723631,1749220248249,-490.74532369,0.00030164,7]
[364723633,1749220248258,-1112.93,0.00030164,7]
[364723635,1749220248267,-4903.83,0.00030164,7]
[364723637,1749220248276,-813.56,0.00030164,7]
[364723639,1749220248285,-151.0,0.00030164,7]
[364723641,1749220248295,-1976.97,0.00030164,7]
[364723642,1749220248303,-151.0,0.00030164,7]
[364723644,1749220248312,-3642.55,0.00030164,7]
[364723646,1749220248321,-2033.72,0.00030164,7]
[364723648,1749220248330,-480.0,0.00030164,7]
[364723650,1749220248339,-1600.26,0.00030164,7]
[364723652,1749220248348,-878.97,0.00030164,7]
[364723655,1749220248358,-480.0,0.00030164,7]
[364723656,1749220248368,-480.0,0.00030164,7]
[364723658,1749220248380,-480.0,0.00030164,7]
[364723660,1749220248390,-948.36,0.00030164,7]
[364723662,1749220248399,-10382.45,0.00030164,7]
[364723664,1749220248410,-520.79,0.00030164,7]
[364723666,1749220248420,-480.0,0.00030164,7]
[364723668,1749220248429,-151.0,0.00030164,7]
[364723670,1749220248439,-480.0,0.00030164,7]
[364723672,1749220248450,-151.0,0.00030164,7]
[364723675,1749220248462,-151.0,0.00030164,7]
[364723677,1749220248472,-3570.9,0.00030164,7]
[364723679,1749220248481,-1399.06,0.00030164,2]
[364723681,1749220248490,-152.576364,0.00030164,7]
[364723683,1749220248499,-875.0,0.00030164,7]
[364723685,1749220248508,-1610.11,0.00030164,7]
[364723687,1749220248517,-506.97,0.00030164,7]
[364723689,1749220248526,-582.82,0.00030164,7]
[364723691,1749220248536,-1069.2,0.00030164,7]
[364723693,1749220248545,-5037.96,0.00030164,7]
[364723695,1749220248553,-480.0,0.00030164,7]
[364723697,1749220248563,-480.0,0.00030164,7]
[364723698,1749220248572,-1221.01,0.00030164,7]
[364723700,1749220248581,-632.52,0.00030164,7]
[364723702,1749220248590,-480.0,0.00030164,7]
[364723704,1749220248599,-2746.68,0.00030164,7]
[364723707,1749220248608,-480.0,0.00030164,7]
[364723708,1749220248617,-1159.49,0.00030164,7]
[364723710,1749220248627,-480.0,0.00030164,7]
[364723712,1749220248636,-1726.11,0.00030164,7]
[364723714,1749220248645,-480.0,0.00030164,7]
[364723715,1749220248655,-480.0,0.00030164,7]
[364723716,1749220248664,-4017.92,0.00030164,7]
[364723717,1749220248674,-4678.49,0.00030164,7]
[364723718,1749220248683,-480.0,0.00030164,7]
[364723719,1749220248691,-480.0,0.00030164,7]
[364723720,1749220248700,-1324.34,0.00030164,7]
[364723721,1749220248709,-576.09,0.00030164,7]
[364723722,1749220248718,-619.71,0.00030164,7]
[364723723,1749220248727,-1223.35,0.00030164,7]
[364723724,1749220248736,-1000.0,0.00030164,7]
[364723725,1749220248745,-480.0,0.00030164,7]
[364723727,1749220248754,-480.0,0.00030164,7]
[364723728,1749220248763,-480.0,0.00030164,7]
[364723730,1749220248772,-480.0,0.00030164,7]
[364723732,1749220248781,-480.0,0.00030164,7]
[364723734,1749220248790,-2298.56,0.00030164,7]
[364723736,1749220248800,-1792.53,0.00030164,7]
[364723738,1749220248809,-783.46,0.00030164,7]
[364723740,1749220248818,-488.06,0.00030164,7]
[364723743,1749220248827,-480.0,0.00030164,7]
[364723744,1749220248836,-480.0,0.00030164,7]
[364723746,1749220248845,-480.0,0.00030164,7]
[364723748,1749220248854,-4227.26,0.00030164,7]
[364723750,1749220248864,-4126.83,0.00030164,7]
[364723752,1749220248873,-985.6,0.00030164,7]
[364723754,1749220248882,-558.35,0.00030164,7]
[364723756,1749220248891,-480.0,0.00030164,7]
[364723758,1749220248900,-480.0,0.00030164,7]
[364723760,1749220248910,-480.0,0.00030164,7]
[364723762,1749220248919,-1349.15,0.00030164,7]
[364723764,1749220248928,-480.0,0.00030164,7]
[364723766,1749220248937,-480.0,0.00030164,7]
[364723768,1749220248947,-480.0,0.00030164,7]
[364723770,1749220248956,-946.38,0.00030164,7]
[364723772,1749220248965,-480.0,0.00030164,7]
[364723774,1749220248974,-1957.15,0.00030164,7]
[364723776,1749220248983,-667.66,0.00030164,7]
[364723777,1749220248992,-1972.33,0.00030164,7]
[364723780,1749220249002,-480.0,0.00030164,7]
[364723781,1749220249011,-480.0,0.00030164,7]
[364723783,1749220249020,-869.99,0.00030164,7]
[364723785,1749220249029,-437.22054667,0.00030164,7]
[364723787,1749220249038,-151.0,0.00030164,7]
[364723789,1749220249047,-151.0,0.00030164,7]
[364723791,1749220249056,-151.0,0.00030164,7]
[364723793,1749220249065,-788.43,0.00030164,7]
[364723795,1749220249074,-151.0,0.00030164,7]
[364723797,1749220249083,-480.0,0.00030164,7]
[364723799,1749220249092,-752.97,0.00030164,7]
[364723801,1749220249102,-480.0,0.00030164,7]
[364723803,1749220249111,-313.3851527,0.00030164,7]
[364723805,1749220249120,-2371.57,0.00030164,7]
[364723808,1749220249129,-480.0,0.00030164,7]
[364723809,1749220249138,-480.0,0.00030164,7]
[364723812,1749220249148,-480.0,0.00030164,7]
[364723814,1749220249159,-480.0,0.00030164,7]
[364723816,1749220249169,-529.15512062,0.00030164,7]
[364723818,1749220249179,-480.0,0.00030164,7]
[364723820,1749220249188,-601.08,0.00030164,7]
[364723822,1749220249197,-480.0,0.00030164,7]
[364723824,1749220249207,-2258.41,0.00030164,7]
[364723826,1749220249216,-480.0,0.00030164,7]
[364723828,1749220249226,-480.0,0.00030164,7]
[364723830,1749220249235,-617.19,0.00030164,7]
[364723832,1749220249245,-957.11,0.00030164,7]
[364723834,1749220249254,-398.85324188,0.00030164,7]
[364723836,1749220249264,-480.0,0.00030164,7]
[364723838,1749220249274,-661.16,0.00030164,7]
[364723840,1749220249283,-480.0,0.00030164,7]
[364723842,1749220249292,-15596.64,0.00030164,7]
[364723844,1749220249302,-480.0,0.00030164,7]
[364723846,1749220249312,-480.0,0.00030164,7]
[364723848,1749220249321,-518.73575585,0.00030164,7]
[364723850,1749220249330,-1003.28,0.00030164,7]
[364723852,1749220249340,-480.0,0.00030164,7]
[364723854,1749220249349,-1277.26,0.00030164,7]
[364723856,1749220249362,-480.0,0.00030164,7]
[364723858,1749220249377,-1738.04,0.00030164,7]
[364723860,1749220249387,-846.81,0.00030164,7]
[364723862,1749220249397,-480.0,0.00030164,7]
[364723864,1749220249407,-2129.46,0.00030164,7]
[364723866,1749220249418,-820.16,0.00030164,7]
[364723868,1749220249428,-1214.21,0.00030164,7]
[364723870,1749220249439,-480.0,0.00030164,7]
[364723872,1749220249449,-480.0,0.00030164,7]
[364723874,1749220249460,-481.7728298,0.00030164,7]
[364723876,1749220249470,-2196.5,0.00030164,7]
[364723878,1749220249480,-923.4,0.00030164,7]
[364723880,1749220249489,-2461.07,0.00030164,7]
[364723883,1749220249499,-480.0,0.00030164,7]
[364723885,1749220249511,-2342.28,0.00030164,7]
[364723887,1749220249521,-1254.9,0.00030164,7]
[364723889,1749220249533,-494.17906345,0.00030164,7]
[364723891,1749220249543,-2121.81,0.00030164,7]
[364723893,1749220249552,-480.0,0.00030164,7]
[364723895,1749220249562,-1793.96,0.00030164,7]
[364723897,1749220249572,-896.54,0.00030164,7]
[364723899,1749220249581,-686.83,0.00030164,7]
[364723901,1749220249591,-2687.86,0.00030164,7]
[364723904,1749220249601,-480.0,0.00030164,7]
[364723906,1749220249610,-480.0,0.00030164,7]
[364723908,1749220249619,-480.0,0.00030164,7]
[364723910,1749220249629,-979.7,0.00030164,7]
[364723912,1749220249638,-820.24,0.00030164,7]
[364723914,1749220249648,-761.13,0.00030164,2]
[364723916,1749220249659,-873.83,0.00030164,7]
[364723918,1749220249668,-1677.25,0.00030164,7]
[364723920,1749220249678,-480.0,0.00030164,7]
[364723922,1749220249687,-1293.09,0.00030164,7]
[364723924,1749220249697,-529.01,0.00030164,7]
[364723926,1749220249706,-1068.09,0.00030164,7]
[364723928,1749220249716,-787.96,0.00030164,7]
[364723930,1749220249725,-480.0,0.00030164,7]
[364723932,1749220249735,-473.16047261,0.00030164,7]
[364723934,1749220249744,-1242.86,0.00030164,7]
[364723936,1749220249754,-11034.26,0.00030164,7]
[364723938,1749220249763,-480.0,0.00030164,7]
[364723940,1749220249773,-480.0,0.00030164,7]
[364723942,1749220249782,-564.91,0.00030164,7]
[364723944,1749220249792,-480.0,0.00030164,7]
[364723946,1749220249801,-498.7359734,0.00030164,7]
[364723948,1749220249811,-480.0,0.00030164,7]
[364723950,1749220249821,-937.81,0.00030164,2]
[364723952,1749220249830,-480.0,0.00030164,7]
[364723954,1749220249840,-671.61,0.00030164,7]
[364723956,1749220249849,-480.0,0.00030164,7]
[364723958,1749220249858,-480.0,0.00030164,7]
[364723961,1749220249868,-151.0,0.00030164,7]
[364723963,1749220249877,-699.69,0.00030164,7]
[364723965,1749220249886,-151.0,0.00030164,7]
[364723967,1749220249896,-480.0,0.00030164,7]
[364723969,1749220249906,-2147.96,0.00030164,7]
[364723971,1749220249917,-151.0,0.00030164,7]
[364723973,1749220249926,-151.0,0.00030164,7]
[364723975,1749220249946,-480.0,0.00030164,7]
[364723977,1749220249956,-151.0,0.00030164,7]
[364723979,1749220249965,-480.0,0.00030164,7]
[364723981,1749220249975,-151.0,0.00030164,7]
[364723983,1749220249984,-480.0,0.00030164,7]
[364723985,1749220249993,-569.84,0.00030164,7]
[364723987,1749220250003,-806.66,0.00030164,7]
[364723989,1749220250012,-151.0,0.00030164,7]
[364723991,1749220250021,-151.0,0.00030164,7]
[364723993,1749220250031,-720.25,0.00030164,7]
[364723995,1749220250040,-1417.78,0.00030164,7]
[364723997,1749220250049,-365.51950285,0.00030164,7]
[364723999,1749220250058,-1409.97,0.00030164,7]
[364724001,1749220250069,-480.0,0.00030164,7]
[364724003,1749220250078,-480.0,0.00030164,7]
[364724005,1749220250088,-480.0,0.00030164,7]
[364724007,1749220250098,-151.0,0.00030164,7]
[364724009,1749220250108,-151.0,0.00030164,7]
[364724011,1749220250119,-480.0,0.00030164,7]
[364724013,1749220250129,-1915.93,0.00030164,7]
[364724015,1749220250138,-1184.01,0.00030164,7]
[364724017,1749220250148,-1233.97,0.00030164,7]
[364724019,1749220250157,-1107.18,0.00030164,7]
[364724021,1749220250167,-480.0,0.00030164,7]
[364724023,1749220250176,-480.0,0.00030164,7]
[364724025,1749220250187,-151.0,0.00030164,7]
[364724027,1749220250197,-151.0,0.00030164,7]
[364724029,1749220250206,-480.0,0.00030164,7]
[364724031,1749220250216,-480.0,0.00030164,7]
[364724033,1749220250226,-480.0,0.00030164,7]
[364724035,1749220250236,-480.0,0.00030164,7]
[364724038,1749220250245,-480.0,0.00030164,7]
[364724040,1749220250255,-480.0,0.00030164,7]
[364724042,1749220250264,-9378.26,0.00030164,7]
[364724044,1749220250274,-102813.60714931,0.00030164,2]
[364724046,1749220250284,-151.0,0.00030165,6]
[364724048,1749220250293,-150.0,0.00030165,7]
[364724050,1749220250303,-150.0,0.00030165,7]
[364724052,1749220250313,-152.0,0.00030168,7]
[364724054,1749220250323,-152.0,0.00030168,7]
[364724056,1749220250333,-152.0,0.00030168,7]
[364724058,1749220250343,-152.0,0.00030168,7]
[364724060,1749220250353,-151.0,0.00030168,7]
[364724062,1749220250364,-152.0,0.00030168,7]
[364724064,1749220250375,-151.0,0.00030168,7]
[364724066,1749220250386,-152.0,0.00030168,7]
[364724068,1749220250396,-151.0,0.00030168,7]
[364724070,1749220250406,-152.0,0.00030168,7]
[364724072,1749220250417,-151.0,0.00030168,7]
[364724074,1749220250427,-152.0,0.00030168,7]
[364724076,1749220250437,-151.0,0.00030168,7]
[364724079,1749220250450,-292.95177789,0.00030168,7]
[364724081,1749220250460,-150.0,0.00030169,7]
[364724083,1749220250470,-151.0,0.00030169,7]
[364724085,1749220250480,-161.0,0.00030169,7]
[364724087,1749220250490,-151.0,0.00030169,7]
[364724089,1749220250500,-253.2642748,0.00030169,7]
[364724091,1749220250510,-1000.0,0.00030169,2]
[364724093,1749220250519,-500.0,0.00030173,5]
[364724095,1749220250529,-500.0,0.00030173,5]
[364724097,1749220250539,-239.4279877,0.00030173,7]
[364724099,1749220250549,-186.88884126,0.00030173,7]
[364724101,1749220250558,-825.00612,0.00030174,30]
[364724103,1749220250568,-150.0,0.00030175,2]
[364724105,1749220250578,-151.253181,0.00030175,7]
[364724107,1749220250588,-151.0,0.00030175,7]
[364724109,1749220250598,-151.0,0.00030175,7]
[364724111,1749220250608,-151.0,0.00030175,7]
[364724113,1749220250618,-1362.899122,0.00030175,7]
[364724115,1749220250628,-1362.899122,0.00030175,7]
[364724117,1749220250638,-224.971363,0.00030175,7]
[364724119,1749220250649,-151.0,0.00030175,7]
[364724121,1749220250659,-224.971363,0.00030175,7]
[364724123,1749220250669,-151.0,0.00030175,7]
[364724125,1749220250679,-151.0,0.00030175,7]
[364724127,1749220250688,-151.0,0.00030175,7]
[364724129,1749220250698,-150.0,0.00030176,7]
[364724132,1749220250708,-150.0,0.00030186,7]
[364724134,1749220250717,-239.4279877,0.00030187,7]
[364724136,1749220250728,-186.88884126,0.00030187,7]
[364724138,1749220250737,-150.0,0.00030189,7]
[364724140,1749220250747,-177.7202863,0.00030192,8]
[364724142,1749220250757,-150.0,0.00030197,7]
[364724144,1749220250767,-150.0,0.00030198,7]
[364724146,1749220250776,-239.4279877,0.000302,7]
[364724148,1749220250786,-186.88884126,0.000302,7]
[364724150,1749220250796,-1569.41,0.000302,2]
[364724152,1749220250805,-500.0,0.000302,2]
[364724154,1749220250815,-376.0,0.000302,2]
[364724156,1749220250824,-768.0,0.000302,2]
[364724158,1749220250833,-713.0,0.000302,2]
[364724160,1749220250843,-150.0,0.00030206,7]
[364724162,1749220250852,-150.0,0.00030208,7]
[364724164,1749220250862,-239.4279877,0.00030213,7]
[364724166,1749220250871,-186.88884126,0.00030213,7]
[364724168,1749220250881,-2214.101,0.00030219,25]
[364724170,1749220250890,-168.402,0.00030219,25]
[364724172,1749220250900,-150.0,0.0003022,7]
[364724174,1749220250911,-150.0,0.0003022,7]
[364724176,1749220250920,-150.0,0.0003022,7]
[364724178,1749220250930,-150.0,0.0003022,7]
[364724180,1749220250940,-150.0,0.00030225,7]
[364724183,1749220250951,-239.4279877,0.00030227,7]
[364724185,1749220250961,-186.88884126,0.00030227,7]
[364724187,1749220250971,-150.0,0.00030227,7]
[364724189,1749220250980,-239.4279877,0.0003024,7]
[364724191,1749220250990,-186.88884126,0.0003024,7]
[364724192,1749220250999,-150.0,0.00030242,7]
[364724193,1749220251009,-150.0,0.00030247,7]
[364724194,1749220251018,-150.0,0.00030251,7]
[364724195,1749220251028,-150.0,0.00030253,7]
[364724196,1749220251037,-239.4279877,0.00030253,7]
[364724197,1749220251047,-186.88884126,0.00030253,7]
[364724198,1749220251057,-463.1873695,0.00030254,2]
[364724199,1749220251067,-150.0,0.00030257,2]
[364724200,1749220251076,-150.0,0.00030259,2]
[364724201,1749220251086,-150.0,0.00030264,7]
[364724203,1749220251095,-150.0,0.00030264,7]
[364724205,1749220251105,-239.4279877,0.00030267,7]
[364724207,1749220251114,-186.88884126,0.00030267,7]
[364724209,1749220251124,-150.0,0.00030268,7]
[364724211,1749220251134,-150.0,0.00030278,7]
[364724213,1749220251144,-460.75,0.00030278,2]
[364724215,1749220251154,-1005.68853577,0.00030279,22]
[364724217,1749220251165,-239.4279877,0.0003028,7]
[364724219,1749220251175,-186.88884126,0.0003028,7]